Cogmind - Beta 9.6 @@@ ROGUE MODE // 2020.05.21 @ 11:33:44 Player: Pimski Result: Destroyed by 8R-AWN with 8R-AWN's Boregun Performance ------------- Evolutions (0) 0 Regions Visited (3) 600 Robots Destroyed (47) 235 Value Destroyed (742) 742 Prototype IDs (22) 440 Alien Tech Used (0) 0 Bonus (284) 284 TOTAL SCORE: 2301 Bonus ------- Aligned with FarCom 300 Friendly Fire -16 Cogmind --------- Core Integrity 0/250 Matter 292/300 Energy 158/160 System Corruption 0% Temperature Cool (40) Movement Treading (180) Ox1 Location -10/Exiles Parts ------- > --- POWER (1) -------- Light Nuclear Core > --- PROPULSION (2) --- Light Treads Light Treads > --- UTILITY (2) ------ High-capacity Storage Unit Improved Light Armor Plating > --- WEAPON (2) ------- Autogun Autogun > --- INVENTORY (12) --- Improved Treads Improved Treads Improved Treads Improved Treads Compact Wheel Large Storage Unit Light Armor Plating Improved Light Armor Plating Autogun Grenade Launcher Mining Claw Peak State ------------ > --- POWER ------------ Light Nuclear Core > --- PROPULSION ------- Light Treads Light Treads > --- UTILITY ---------- High-capacity Storage Unit High-capacity Storage Unit > --- WEAPON ----------- Autogun Autogun > --- INVENTORY -------- Improved Treads Improved Treads Improved Treads Improved Treads Compact Wheel Medium Storage Unit High-capacity Storage Unit Lightpack 2.0 Modified TNC Light Armor Plating Improved Light Armor Plating Improved Light Armor Plating Hacking Suite Firepult Autogun Autogun Grenade Launcher Mining Claw [Rating: 18] Favorites ----------- Power Light Nuclear Core Engine Ion Engine Power Core Light Nuclear Core Propulsion Light Treads Treads Light Treads Leg Aluminum Leg Utility High-capacity Storage Unit Storage High-capacity Storage Unit Protection Improved Light Armor Plating Weapon Autogun Energy Gun Small Laser Ballistic Gun Autogun Launcher Grenade Launcher Build | -11 -10 -10 -10 ------- Run | Scr Mat Min Exi Slots Evolved . | . . . . Power . | . . . . Propulsion . | . . . . Utility . | . . . . Weapon . | . . . . Parts Attached 18 | . 11 3 4 Power 2 | . . 2 . Engine 1 | . . 1 . Core 1 | . . 1 . Reactor . | . . . . Propulsion 4 | . 3 1 . Treads 4 | . 3 1 . Leg . | . . . . Wheel . | . . . . Hover . | . . . . Flight . | . . . . Utility 5 | . 4 . 1 Device . | . . . . Storage 4 | . 4 . . Processor . | . . . . Hackware . | . . . . Protection 1 | . . . 1 Artifact . | . . . . Weapon 7 | . 4 . 3 Energy Gun . | . . . . Energy Cannon . | . . . . Ballistic Gun 6 | . 4 . 2 Ballistic Cannon . | . . . . Launcher 1 | . . . 1 Special Weapon . | . . . . Impact Weapon . | . . . . Slashing Weapon . | . . . . Piercing Weapon . | . . . . Special Melee Weapon . | . . . . Unidentified Prototypes . | . . . . Parts Lost 1 | . . . 1 Power . | . . . . Propulsion . | . . . . Utility . | . . . . Weapon 1 | . . . 1 Highest Loss Streak 1 | . . . 1 Average Slot Usage (%) 99 | . 97 100 100 Engine 8 | . 14 11 . Core 5 | . . 2 14 Treads 27 | . 26 28 28 Storage 25 | . 26 28 23 Protection 1 | . . . 4 Ballistic Gun 27 | . 27 28 27 Naked Turns . | . . . . Heaviest Build 75 | 11 75 75 75 Greatest Support 40 | 20 40 40 40 Greatest Overweight (x) 1 | . 1 1 1 Average Overweight (x) . | . . 1 1 Largest Inventory Capacity 20 | 6 20 20 20 Average Capacity 16 | 6 13 20 17 Most Carried 20 | 6 18 20 20 Average Carried 15 | 6 11 19 16 Final Capacity 20 | 6 20 20 12 Final Carried 20 | 6 18 20 11 Class Distribution -------------------- 68% | Hauler-Mutant 31% | Mutant Dominant Class ---------------- Mutant | -10/Materials Hauler-Mutant | -10/Mines Hauler-Mutant | -10/Exiles Resources | -11 -10 -10 -10 ----------- Run | Scr Mat Min Exi Matter Collected 1305 | 209 586 350 160 Remotely . | . . . . Salvage Created 1772 | 71 954 715 32 Parts 82 | 1 43 38 . Haulers Intercepted 2 | . 2 . . Recyclers Shooed 4 | . 3 1 . Parts Field Recycled . | . . . . Retrieved Matter . | . . . . Parts Self-Destructed . | . . . . Prevented . | . . . . Kills | -11 -10 -10 -10 ------- Run | Scr Mat Min Exi Combat Hostiles Destroyed 24 | . 12 5 7 Guns 17 | . 12 5 . AOE 7 | . . . 7 Classes Destroyed 10 | 1 4 4 1 Worker 3 | . . 3 . Builder 3 | . . 3 . Tunneler 2 | . . 2 . Hauler 2 | . 2 . . Recycler 9 | 1 3 5 . Operator 3 | . 3 . . Watcher 1 | . 1 . . Swarmer 3 | . . 3 . Grunt 14 | . 12 2 . Assembled 7 | . . . 7 Best Kill Streak 7 | 1 5 5 7 Combat Bots Only 7 | . 5 3 7 Max Kills in Single Turn 4 | 1 1 1 4 Gunslinging . | . . . . Exploded 4 | . . . 4 Melee . | . . . . Uniques/NPCs Destroyed . | . . . . Combat | -11 -10 -10 -10 -------- Run | Scr Mat Min Exi Damage Taken 1029 | . 413 170 446 Core 254 | . 117 16 121 Absorbed by Shields . | . . . . Core Remaining (%) 100 | 100 . . . Volleys Fired 132 | 9 67 40 16 Largest 2 | 2 2 2 2 Hottest 60 | 60 46 46 46 Shots Fired 260 | 17 134 80 29 Gun 258 | 17 134 80 27 Cannon . | . . . . Launcher 2 | . . . 2 Special . | . . . . Kinetic 250 | 9 134 80 27 Thermal 8 | 8 . . . Explosive 2 | . . . 2 Electromagnetic . | . . . . Robot Hit Streak 25 | 8 25 11 10 Robot Miss Streak 3 | 1 3 3 2 Penetration Max . | . . . . Secondary Targets 1 | . . 1 . Max Gunslinging Chain 1 | . . 1 . Shots Hit Robots 186 | 15 92 56 23 Core Hits 82 | 2 36 27 17 Critical Hits 4 | . 2 1 1 Critical Kills 1 | . 1 . . Critical Parts Destroyed 2 | . 1 1 . Melee Attacks . | . . . . Impact . | . . . . Slashing . | . . . . Piercing . | . . . . Sneak Attacks . | . . . . Combat Hostiles . | . . . . Follow-up Attacks . | . . . . Damage Inflicted 3027 | 135 1359 885 648 Guns 2685 | 135 1335 881 334 Cannons . | . . . . Explosions 314 | . . . 314 Melee . | . . . . Ramming 28 | . 24 4 . Kinetic 2600 | 50 1335 881 334 Thermal 85 | 85 . . . Explosive 308 | . . . 308 Electromagnetic 6 | . . . 6 Impact . | . . . . Slashing . | . . . . Piercing . | . . . . Highest Corruption . | . . . . Average Corruption . | . . . . Corruption Purged . | . . . . Overload Shots . | . . . . Overflow Damage 1 | . . . 1 Projectiles . | . . . . Explosions 1 | . . . 1 Melee . | . . . . Knockbacks . | . . . . Impact . | . . . . Kinetic . | . . . . Secondary . | . . . . Self-Inflicted Damage . | . . . . Shots . | . . . . Rammed 4 | . 3 1 . Targets Rammed 4 | . 3 1 . Kicked . | . . . . Crushed . | . . . . Highest Temperature 56 | 40 40 30 56 Average Temperature 11 | 17 9 8 24 Received Heat Transfer 279 | . 228 51 . Siege Activations . | . . . . Robots Corrupted . | . . . . Combat Hostiles . | . . . . Parts Fried . | . . . . Impact Corruptions . | . . . . Robots Melted . | . . . . Combat Hostiles . | . . . . Parts Melted . | . . . . Heat Transferred 200 | 200 . . . Parts Sabotaged . | . . . . Parts Stolen . | . . . . Parts Stripped . | . . . . Power Chain Reactions . | . . . . Missiles Intercepted . | . . . . Alert | -11 -10 -10 -10 ------- Run | Scr Mat Min Exi Peak Influence 219 | 5 219 105 . Average Influence 56 | 2 81 36 . Maximum Alert Level 1 | . 1 . . Low Security (%) 99 | 100 98 100 . Level 1 . | . 1 . . Level 2 . | . . . . Level 3 . | . . . . Level 4 . | . . . . Level 5 . | . . . . High Security . | . . . . Max Security . | . . . . Squads Dispatched 4 | . 4 . . Investigation 1 | . 1 . . Extermination . | . . . . Reinforcement 3 | . 3 . . Assault . | . . . . Garrison . | . . . . Intercept . | . . . . Construction Impeded . | . . . . Haulers Reinforced . | . . . . Stealth | -11 -10 -10 -10 --------- Run | Scr Mat Min Exi Distress Signals 1 | . 1 . . Communications Jammed . | . . . . Distress Signals . | . . . . Times Spotted 42 | . 28 5 9 Peak Tracking Total 10 | . 5 3 10 Tactical Retreats 2 | . 1 . 1 Traps | -11 -10 -10 -10 ------- Run | Scr Mat Min Exi Traps Triggered 2 | . 1 . 1 Indirectly 1 | . . . 1 Trap Hack Attempts . | . . . . Triggered . | . . . . Disarmed . | . . . . Reprogrammed . | . . . . Reused 2 | . . . 2 Traps Extracted . | . . . . Installed 3 | . . . 3 Triggered . | . . . . Machines | -11 -10 -10 -10 ---------- Run | Scr Mat Min Exi Machines Disabled 9 | . 4 . 5 Max in Single Turn 4 | . 1 . 4 Machines Sabotaged . | . . . . Garrisons Compromised . | . . . . Overloaded Fab Kills . | . . . . Fab Network Shutdowns . | . . . . Hacking | -11 -10 -10 -10 --------- Run | Scr Mat Min Exi Machines Accessed 6 | . 3 1 2 Terminals 2 | . 1 1 . Fabricators . | . . . . Repair Stations 1 | . 1 . . Recycling Units 1 | . 1 . . Scanalyzers . | . . . . Garrison Access . | . . . . Total Hacks 12 | . 8 2 2 Successful 7 | . 5 . 2 Failed 5 | . 3 2 . Catastrophic 1 | . . 1 . Database Lockouts . | . . . . Manual 6 | . 2 3 1 Terminals 5 | . 3 2 . Fabricators . | . . . . Repair Stations 2 | . 2 . . Recycling Units 3 | . 3 . . Scanalyzers . | . . . . Garrison Access . | . . . . Terminal Hacks 4 | . 2 . 2 Record 1 | . . . 1 Robot Analysis 1 | . 1 . . Locate Traps 1 | . 1 . . EX-Prototype ID Bank 1 | . . . 1 Fabricator Hacks . | . . . . Repair Station Hacks 2 | . 2 . . Scan Component 1 | . 1 . . Repair 1 | . 1 . . Recycling Unit Hacks 1 | . 1 . . Retrieve Components 1 | . 1 . . Scanalyzer . | . . . . Garrison Access Hacks . | . . . . Unauthorized Hacks . | . . . . Terminals . | . . . . Fabricators . | . . . . Repair Stations . | . . . . Recycling Units . | . . . . Scanalyzers . | . . . . Garrison Access . | . . . . Data Cores Recovered . | . . . . Used . | . . . . Hacking Detections 4 | . 3 1 . Full Trace Events . | . . . . Feedback Events . | . . . . Feedback Blocked . | . . . . Robot Schematics Acquired . | . . . . Robots Built . | . . . . Matter . | . . . . Time . | . . . . Total Robot Build Rating . | . . . . Part Schematics Acquired . | . . . . Parts Built . | . . . . Matter . | . . . . Time . | . . . . Total Part Build Rating . | . . . . Parts Repaired 1 | . 1 . . Time 26 | . 26 . . Parts Recycled . | . . . . Recycled Matter . | . . . . Retrieved Matter . | . . . . Retrieved Components 1 | . 1 . . Parts Scanalyzed . | . . . . Part Schematics Acquired . | . . . . Parts Damaged . | . . . . Bothacking | -11 -10 -10 -10 ------------ Run | Scr Mat Min Exi Used RIF Installer . | . . . . Robots Hacked . | . . . . Non-combat . | . . . . Combat . | . . . . Robot Hacks Applied . | . . . . Relay Couplers Released . | . . . . Robots Rewired . | . . . . Allies Hacked . | . . . . Hacks Repelled . | . . . . Allies | -11 -10 -10 -10 -------- Run | Scr Mat Min Exi Total Allies . | . . . . Largest Group . | . . . . Highest-Rated Group . | . . . . Highest-Rated Ally . | . . . . Total Orders . | . . . . Ally Attacks . | . . . . Total Damage . | . . . . Kills . | . . . . Allies Corrupted . | . . . . Allies Melted . | . . . . Intel | -11 -10 -10 -10 ------- Run | Scr Mat Min Exi Robot Analysis Total 1 | . 1 . . Derelict Logs Recovered 1 | . . 1 . Drone Launches . | . . . . Drone Recoveries . | . . . . Exploration | -11 -10 -10 -10 ------------- Run | Scr Mat Min Exi Turns Passed 4053 | 65 1295 1509 1184 Spaces Moved 1927 | 33 604 673 617 Core . | . . . . Treads 1867 | . 577 673 617 Legs 60 | 33 27 . . Wheels . | . . . . Hover . | . . . . Flight . | . . . . Fastest Speed 120 | 120 120 180 180 Average Speed 174 | 120 165 180 180 Slowest Speed 180 | 120 180 180 180 Overloaded Moves . | . . . . Propulsion Burnouts . | . . . . Robots Hopped . | . . . . Cave-ins Triggered . | . . . . Exploration Rate (%) 62 | 4 84 99 63 Regions Visited 3 Branch Regions 2 Pre-discovered Areas 2 | . . 1 1 Known Exits Taken . | . . . . Unknown Exits Taken 3 | 1 1 1 . Scrap Searched 2 | . . 2 . Spaces Dug . | . . . . Terrain Destroyed 3 | . . . 3 Melee . | . . . . Projectile . | . . . . AOE 3 | . . . 3 Actions | -11 -10 -10 -10 --------- Run | Scr Mat Min Exi Total 2423 | 43 793 909 678 Wait 275 | 2 87 180 6 Move 1924 | 32 603 672 617 Hop . | . . . . Pick Up 34 | . 15 7 12 Fast Attach 3 | . 3 . . Attach 6 | . 2 2 2 Detach . | . . . . Swap 9 | . 6 1 2 Drop 33 | . 7 6 20 Fire 132 | 9 67 40 16 Melee . | . . . . Ram . | . . . . Kick . | . . . . Crush 4 | . 3 1 . Escape Stasis . | . . . . Rewire . | . . . . Trap 3 | . . . 3 Miscellaneous . | . . . . Route ------- -11/Scrapyard -10/Materials (discovered 3 exits: [*Mat] / *Min x2) -10/Mines (discovered 3 exits: [*Mat x2] / *Exi) -10/Exiles (discovered 1 exit: [*Min]) History --------- Turn | Location | Event 20 | -11/Scrapyard | Discovered new exit (range 3) 66 | -11/Scrapyard | Entered Materials 187 | -10/Materials | Discovered new exit (range 9) 303 | -10/Materials | Build established: Mutant 642 | -10/Materials | Discovered new exit (range 6) 972 | -10/Materials | Discovered new exit (range 11) 1187 | -10/Materials | Build established: Hauler-Mutant 1287 | -10/Materials | Repaired Lgt. Treads 1361 | -10/Materials | Entered Mines 1369 | -10/Mines | Met a Derelict bent on vengeance 1798 | -10/Mines | Assembled infested the area 2042 | -10/Mines | Learned location of Zion (-6) 2057 | -10/Mines | Discovered new exit (range 5) 2253 | -10/Mines | Discovered new exit (range 5) 2375 | -10/Mines | Core integrity fell below 50% 2549 | -10/Mines | Discovered new exit (range 10) 2555 | -10/Mines | Found a hidden stash of uninstalled traps 2870 | -10/Mines | Entered Exiles 2914 | -10/Exiles | Met 8R-AWN 3050 | -10/Exiles | Met EX-HEX 3247 | -10/Exiles | Met EX-DEC 3377 | -10/Exiles | Met EX-BIN 3413 | -10/Exiles | Aligned with FarCom system 3414 | -10/Exiles | Given EX-Vault access code 3456 | -10/Exiles | Opened EX-Vault 3465 | -10/Exiles | Found Lightpack 2.0 3475 | -10/Exiles | Found Modified TNC 3480 | -10/Exiles | Found Firepult 3519 | -10/Exiles | Warned to stay clear of 0b10 Research branches 3642 | -10/Exiles | Discovered new exit (range 14) 3964 | -10/Exiles | Build established: Mutant 4012 | -10/Exiles | Attacked by the Exiles 4035 | -10/Exiles | Destroyed 7 combat bots 4042 | -10/Exiles | Core integrity fell below 20% 4054 | -10/Exiles | Destroyed by 8R-AWN with 8R-AWN's Boregun Last Messages --------------- 04036_ Autogun destroyed. 04036_ Penetrated by HV Slug. 04038_ Extracted 10 matter. 04039_ Extracted 8 matter. 04039_ Penetrated by HV Slug. 04039_ HV Slug penetrates Wall. 04041_ Penetrated by HV Slug. 04042_ Extracted 8 matter. 04043_ Penetrated by HV Slug. 04044_ 8R-AWN suffers critical hit. 04045_ Extracted 8 matter. 04045_ Penetrated by HV Slug. 04047_ Extracted 8 matter. 04048_ Penetrated by HV Slug. 04050_ Extracted 8 matter. 04050_ Penetrated by HV Slug. 04052_ Extracted 8 matter. 04052_ Penetrated by HV Slug. 04054_ HV Slug penetrates Wall. 04054_ Penetrated by HV Slug. Map ----- +----------------------------------------------------+ | """#??????????????????????????????????? | | """#??????????????????????????????????? | | """#??????????????????????????????????? | | """#??????????????????????????????????? | | """#??????????????????????????????????? | | """"??????????????????????????????????? | | """#??????????????????????????????????? | | "X" """???????????????????????????????????? | | """ ???????????????????????????????????? | | """""""""???????????????????????????????????? | | ##########???????????????????????????????????? | | #????????????????????????????????????????????? | | #????????????????????????????????????????????? | | ##???????????????????????????????????????????? | | ##???####;######????????????????????????????? | | #####"""" """"##???????????????????????????? | | " """ """"##??????????????????????????? | | "" " #??????????????????????????? | | " """#??????????????????????????? | | a"#???????????#####??????????? | | " "##?????????##" #??????????? | | "###???????#" #??????????? | | "" ""#??????##"^ ##?????????? | | #""" "#????### ###???????? | | #####""" ##???# ######### | | ????##""" !@##?## ^ #""""## | | ?????#"""" ! ### | | ????##"" g ## | | ?####"""" #### | | ##""" ""#?#"""""#### | | """ # ""##?#######??#### | | ######??????????????## | | ##????????????????????? | | " ##?????????????????????? | | "" """ % "#??????????????????????? | | ##""" " " ""#" % "##??????????????????????? | | ######""" """##"" #???????????????????????? | | #????###""""##### ## ##????????????????????????? | | ####???######???##?##??????????????????????????? | | "!#???????????????????????????????????????????? | | !#???????????????????????????????????????????? | | "#???????????????????????????????????????????? | | "" "#???????????????????????????????????????????? | | ######???????????????????????????????????????????? | | ?????????????????????????????????????????????????? | | ?????????????????????????????????????????????????? | | ?????????????????????????????????????????????????? | | ?????????????????????????????????????????????????? | | ?????????????????????????????????????????????????? | | ?????????????????????????????????????????????????? | +----------------------------------------------------+ Best States ------------- Heat Dissipation 25 Energy Generation 14 Energy Capacity 250 Matter Stores 300 Matter Capacity 300 Sight Range 16 Terrain Scan Density 10 Armor Coverage 150 Evasion (%) 40 Recoil Reduction 2 Item Schematics ----------------- None Robot Schematics ------------------ None Fabricated ------------ Nothing Alien Tech Used ----------------- None Achievements -------------- None Challenges ------------ None Game ------ Seed DirtyShrapnelAutogun Manual? 0 Play Time 00:23:58 Cumulative 691.7 hours Start 2020.05.21 @ 11:15:02 End 2020.05.21 @ 11:33:44 Sessions 1 Manual Loads 0 Difficulty Rogue Special Mode None Game No. 439 Rogue 439 Adventurer 0 Explorer 0 Win Type - Total 106 Types 72/6/8/10/5/1/4 Lore% 97 Gallery% 95 Achievement% 80 Wizard Run 0 Options --------- ASCII 0 Keyboard 0 Movement Numpad Keybinds 0 Fullscreen 2 Font 18/SmallcapsGlow Map View 76x50 Tactical HUD 1 Map Filters NONE Filters NONE Steam 1 RUN: 077dfda5-2c59-4209-b489-3e8307f7bc4c